fUST/lending_fUST_20240312
["ID","MTS","AMOUNT","RATE_DAILY","PERIOD"]
[318313006,1710172873939,1498.8773728,0.00013844,2]
[318313007,1710172976876,4241.77765348,0.00013614,2]
[318313008,1710172976908,17002.84144022,0.00013614,2]
[318313009,1710173050774,500.0,0.00027,120]
[318313012,1710173076623,211.0,0.00027,120]
[318313013,1710173099905,217.23,0.00027,120]
[318313037,1710173332443,7893.78,0.0002,14]
[318313066,1710173432826,-704.15336957,0.00014034,2]
[318313068,1710173432836,-186.73102555,0.00014035,2]
[318313070,1710173432845,-306.59099489,0.00014036,2]
[318313072,1710173432855,-291.169441,0.0001405,2]
[318313074,1710173432864,-2000.0,0.00014828,2]
[318313076,1710173432874,-927.29013157,0.000154,2]
[318313078,1710173432883,-47665.43016858,0.00015497,2]
[318313080,1710173432892,-2020.56022276,0.00015498,2]
[318313082,1710173432901,-280.54842491,0.00015498,2]
[318313083,1710173432910,-20511.41719497,0.00015498,2]
[318313085,1710173432920,-413.25093692,0.00015498,2]
[318313088,1710173432932,-2501.55676893,0.00015498,2]
[318313089,1710173432942,-690.59173185,0.00015498,2]
[318313090,1710173432951,-155.15360207,0.00015499,2]
[318313092,1710173432960,-1391.66652106,0.00015499,2]
[318313093,1710173432970,-2839.88405605,0.000155,2]
[318313094,1710173432981,-262.08984602,0.000155,2]
[318313172,1710173442973,-56835.07244263,0.000155,2]
[318313173,1710173442986,-672.1714394,0.000155,2]
[318313215,1710173443695,-4520.5410131,0.000155,2]
[318313216,1710173443720,-48471.68920125,0.000155,2]
[318313217,1710173443734,-6654.3346279,0.000155,2]
[318313218,1710173443747,-46526.9165513,0.000155,2]
[318313219,1710173443759,-3170.2316714,0.000155,2]
[318313220,1710173443771,-10269.30402298,0.000155,2]
[318313221,1710173443783,-289.77805512,0.000155,2]
[318313251,1710173447774,-534.44007195,0.000155,2]
[318313252,1710173447911,-803.8,0.000155,2]
[318313253,1710173447922,-36000.50000001,0.000155,2]
[318313254,1710173448035,-639.08744111,0.000155,2]
[318313255,1710173465540,1455.37405086,0.00015498,5]
[318313258,1710173619726,1092.3,0.0002388,40]
[318313270,1710173803972,201.0,0.00027,120]
[318313318,1710174384249,201.0,0.00027,120]
[318313414,1710174634061,-155.13186208,0.00014038,2]
[318313416,1710174634071,-186.73102555,0.00014039,2]
[318313418,1710174634080,-1.91492424,0.00014039,2]
[318313422,1710174634103,-702.23844533,0.00014039,2]
[318313423,1710174634114,-569.80662646,0.0001404,2]
[318313910,1710174639024,-1534.86125774,0.0001404,2]
[318313912,1710174639035,-2000.0,0.00014916,2]
[318313914,1710174639044,-339.97120276,0.000154,2]
[318314389,1710174644061,-306.59099489,0.00014037,2]
[318314391,1710174644075,-6082.77722588,0.000154,2]
[318314394,1710174644084,-558.30663003,0.00015498,2]
[318314397,1710174644094,-404.45303566,0.00015498,2]
[318314399,1710174644104,-290.48375637,0.00015498,2]
[318314401,1710174644114,-155.14117847,0.00015498,2]
[318314403,1710174644124,-624.23888742,0.00015498,2]
[318314405,1710174644134,-539.11478711,0.00015498,2]
[318314407,1710174644143,-534.38056154,0.00015498,2]
[318314433,1710174644397,-1580.47704563,0.00015498,2]
[318314436,1710174644406,-1387.66495321,0.00015498,2]
[318314439,1710174644415,-15038.72471448,0.00015499,2]
[318314442,1710174644425,-3729.73246076,0.000155,2]
[318314445,1710174644437,-4442.89368586,0.000155,2]
[318314448,1710174644449,-1120.31897255,0.000155,2]
[318314453,1710174644460,-308.97297558,0.000155,2]
[318316483,1710174667641,1364.1586901,0.00015498,5]
[318317828,1710174683639,1364.1586901,0.00015498,5]
[318319871,1710174705649,411.10462334,0.00015498,5]
[318321338,1710175197810,2365.50410991,0.0001549,4]
[318321439,1710175564296,1364.1586901,0.00015498,5]
[318321441,1710175590241,1252.02631285,0.00015498,5]
[318321575,1710175832958,-155.13962566,0.0001402,2]
[318321576,1710175832967,-299.63529874,0.00014021,2]
[318321577,1710175832976,-345.5560246,0.00014022,2]
[318321578,1710175832987,-358.59734497,0.00014022,2]
[318321579,1710175832996,-4307.2892926,0.00014027,2]
[318321580,1710175833005,-6391.72906,0.00014027,2]
[318321581,1710175833014,-421.2280537,0.00014118,2]
[318321582,1710175833022,-300.0,0.00014589,2]
[318321583,1710175833031,-2000.0,0.00015023,2]
[318321585,1710175833040,-402.0697324,0.000154,2]
[318321586,1710175833050,-401.9495674,0.000154,2]
[318321588,1710175833058,-280.16271408,0.000154,2]
[318321590,1710175833067,-184.58642413,0.000154,2]
[318321592,1710175833076,-186.40227069,0.00015498,2]
[318321594,1710175833086,-375.78520709,0.00015498,2]
[318321596,1710175833098,-686.93817482,0.00015498,2]
[318321598,1710175833107,-528.57307235,0.00015499,2]
[318321600,1710175833117,-2797.05170962,0.000155,2]
[318321602,1710175833130,-10431.43301311,0.000155,2]
[318321604,1710175833141,-33017.19792231,0.000155,2]
[318321607,1710175833153,-616.3095412,0.000155,2]
[318322277,1710175840014,-517.50836084,0.000155,2]
[318322279,1710175840025,-2165.69190042,0.000155,2]
[318322282,1710175840036,-5299.66402931,0.000155,2]
[318322284,1710175840047,-263.42601736,0.000155,2]
[318322665,1710175843116,-4584.58490425,0.000155,2]
[318322669,1710175843129,-777.92195627,0.000155,2]
[318322677,1710175843206,-490.24750438,0.000155,2]
[318322678,1710175843258,-6040.37615682,0.000155,2]
[318323129,1710175847613,-199.75686582,0.00015499,2]
[318323131,1710175847622,-3373.93233418,0.000155,2]
[318324175,1710175860276,1364.1586901,0.00015498,5]
[318325959,1710175880265,1252.02631285,0.00015498,5]
[318326482,1710176073032,3716.42270948,0.00027,120]
[318326483,1710176206339,1363.03238654,0.00015498,5]
[318326484,1710176462442,1363.03238654,0.00015498,5]
[318326485,1710176638019,-15258.0,0.00014163,2]
[318326486,1710176714498,1363.03238654,0.00015498,5]
[318326545,1710176974491,1363.03238654,0.00015499,5]
[318326566,1710177032832,-166.46405485,0.0001415,2]
[318326567,1710177032842,-704.15336957,0.00014151,2]
[318326568,1710177032852,-155.15515516,0.00014152,2]
[318326569,1710177032864,-300.0,0.00014162,2]
[318326570,1710177032873,-9642.0,0.00014163,2]
[318326571,1710177032883,-316.413709,0.00014308,2]
[318326572,1710177032892,-2000.0,0.00015157,2]
[318326573,1710177032902,-686.11436598,0.00015498,2]
[318326574,1710177032911,-492.18950451,0.00015498,2]
[318326575,1710177032922,-680.40080372,0.00015498,2]
[318326576,1710177032931,-852.87262269,0.00015498,2]
[318326578,1710177032940,-418.53139877,0.00015498,2]
[318326580,1710177032949,-197.02843048,0.00015498,2]
[318326582,1710177032961,-186.73102555,0.00015498,2]
[318326584,1710177032971,-15258.05486311,0.00015498,2]
[318326586,1710177032981,-26719.36774654,0.000155,2]
[318326588,1710177032992,-10142.0,0.000155,2]
[318326663,1710177040172,-33189.156,0.000155,2]
[318326702,1710177043360,-4725.88333874,0.000155,2]
[318326703,1710177043374,-1846.77892489,0.000155,2]
[318326788,1710177047642,-252.23863145,0.00015499,2]
[318326791,1710177047652,-1343.86054283,0.000155,2]
[318326797,1710177047706,-12555.56841852,0.000155,2]
[318326798,1710177047770,-12592.28764574,0.000155,2]
[318327242,1710177058512,1363.03238654,0.00015498,5]
[318327243,1710177383058,1363.03238654,0.00015498,5]
[318327244,1710177451555,175.2985067,0.00013737,2]
[318327246,1710177561172,1821.86005308,0.00013737,2]
[318327247,1710177623470,-704.15336957,0.00013735,2]
[318327248,1710177623492,-166.46405485,0.00013736,2]
[318327249,1710177623514,-8000.0,0.00013736,2]
[318327250,1710177623536,-4867.38257558,0.00013737,2]
[318327251,1710177630606,333.51585461,0.00015498,5]
[318327252,1710177630638,1029.51653193,0.00015498,5]
[318327253,1710177681160,2000.0,0.00027,120]
[318327254,1710177694452,-15261.0,0.00013737,2]
[318327255,1710177696092,2000.0,0.00025,99]
[318327256,1710177706005,800.0,0.00023,60]
[318327257,1710177763496,1000.0,0.00022,40]
[318327259,1710177896622,1363.03238654,0.00015497,5]
[318327270,1710178185201,1363.03238654,0.00015497,5]
[318327317,1710178232438,-1186.4789348,0.00013761,2]
[318327319,1710178232447,-704.15336957,0.00013862,2]
[318327321,1710178232458,-4323.94054464,0.00013863,2]
[318327323,1710178232471,-10936.97467409,0.00013863,2]
[318327325,1710178232482,-2949.7573714,0.00013864,2]
[318327327,1710178232491,-316.413709,0.00014273,2]
[318327329,1710178232500,-20497.5747463,0.00014518,2]
[318327331,1710178232510,-593.86919422,0.00015,2]
[318327333,1710178232519,-947.63796653,0.00015016,2]
[318327335,1710178232528,-2000.0,0.00015021,2]
[318327337,1710178232538,-500.0,0.00015068,2]
[318327339,1710178232547,-500.0,0.00015068,2]
[318327341,1710178232557,-201.0348662,0.00015278,2]
[318327343,1710178232567,-402.0697324,0.000153,2]
[318327345,1710178232575,-153.0,0.000153,2]
[318327347,1710178232585,-200.3240955,0.000153,2]
[318327349,1710178232594,-909.90855931,0.00015398,2]
[318327351,1710178232603,-153.0,0.000154,2]
[318327353,1710178232612,-153.0,0.000154,2]
[318327356,1710178232621,-153.0,0.000154,2]
[318327359,1710178232630,-201.0348662,0.000154,2]
[318327360,1710178232639,-257.8792595,0.000154,2]
[318327361,1710178232648,-153.0,0.000154,2]
[318327362,1710178232657,-201.0348663,0.000154,2]
[318327364,1710178232666,-153.0,0.000154,2]
[318327365,1710178232675,-392.7238845,0.00015441,2]
[318327366,1710178232684,-1219.83966762,0.00015497,2]
[318327367,1710178232694,-15952.47806843,0.00015497,2]
[318327368,1710178232703,-500.0,0.00015497,2]
[318327370,1710178232712,-500.0,0.00015497,2]
[318327372,1710178232721,-500.0,0.00015497,2]
[318327374,1710178232730,-500.0,0.00015497,2]
[318327376,1710178232739,-500.0,0.00015497,2]
[318327378,1710178232748,-155.06202481,0.00015497,2]
[318327380,1710178232758,-155.06202481,0.00015497,2]
[318327382,1710178232767,-500.0,0.00015497,2]
[318327383,1710178232776,-500.0,0.00015497,2]
[318327385,1710178232786,-500.0,0.00015497,2]
[318327386,1710178232795,-500.0,0.00015497,2]
[318327387,1710178232804,-500.0,0.00015497,2]
[318327388,1710178232813,-500.0,0.00015497,2]
[318327389,1710178232823,-500.0,0.00015497,2]
[318327390,1710178232832,-500.0,0.00015497,2]
[318327391,1710178232842,-500.0,0.00015497,2]
[318327392,1710178232851,-500.0,0.00015497,2]
[318327393,1710178232860,-500.0,0.00015497,2]
[318327394,1710178232869,-500.0,0.00015497,2]
[318327395,1710178232878,-3105.77,0.00015497,2]
[318327396,1710178232887,-3105.77,0.00015497,2]
[318327397,1710178232896,-3105.77,0.00015497,2]
[318327398,1710178232906,-3105.77,0.00015497,2]
[318327399,1710178232915,-1997.34487648,0.00015497,2]
[318327400,1710178232977,-1108.42512352,0.00015497,2]
[318327401,1710178232986,-359.15669773,0.00015497,2]
[318327402,1710178232995,-500.0,0.00015497,2]
[318327403,1710178233005,-500.0,0.00015497,2]
[318327404,1710178233014,-500.0,0.00015497,2]
[318327405,1710178233023,-500.0,0.00015497,2]
[318327406,1710178233032,-500.0,0.00015497,2]
[318327407,1710178233041,-500.0,0.00015497,2]
[318327408,1710178233050,-500.0,0.00015497,2]
[318327409,1710178233059,-500.0,0.00015497,2]
[318327410,1710178233068,-500.0,0.00015497,2]
[318327411,1710178233077,-500.0,0.00015497,2]
[318327412,1710178233086,-500.0,0.00015497,2]
[318327413,1710178233096,-500.0,0.00015497,2]
[318327414,1710178233105,-1237.2,0.00015497,2]
[318327415,1710178233114,-1237.2,0.00015497,2]
[318327416,1710178233124,-1237.2,0.00015497,2]
[318327417,1710178233134,-1237.2,0.00015497,2]
[318327418,1710178233143,-1237.2,0.00015497,2]
[318327419,1710178233153,-620.68429087,0.00015498,2]
[318327420,1710178233162,-366.89876971,0.00015498,2]
[318327421,1710178233172,-558.30663003,0.00015498,2]
[318327422,1710178233181,-404.45303566,0.00015498,2]
[318327423,1710178233190,-155.88805604,0.00015498,2]
[318327424,1710178233199,-7272.57118471,0.00015498,2]
[318327425,1710178233210,-2477.64,0.00015498,2]
[318327426,1710178233219,-2477.64,0.00015498,2]
[318327427,1710178233229,-2477.64,0.00015498,2]
[318327428,1710178233325,-2477.64,0.00015498,2]
[318327429,1710178233335,-2477.64,0.00015498,2]
[318327430,1710178233344,-2477.64,0.00015498,2]
[318327431,1710178233354,-2477.64,0.00015498,2]
[318327432,1710178233363,-2477.64,0.00015498,2]
[318327433,1710178233372,-2477.64,0.00015498,2]
[318327434,1710178233383,-2477.64,0.00015498,2]
[318327435,1710178233392,-2477.8044143,0.00015498,2]
[318327436,1710178233401,-773.61,0.00015498,2]
[318327437,1710178233410,-773.61,0.00015498,2]
[318327438,1710178233420,-773.61,0.00015498,2]
[318327439,1710178233429,-773.61,0.00015498,2]
[318327440,1710178233438,-773.61,0.00015498,2]
[318327441,1710178233447,-773.61,0.00015498,2]
[318327442,1710178233459,-773.61,0.00015498,2]
[318327443,1710178233468,-773.61,0.00015498,2]
[318327444,1710178233478,-773.61,0.00015498,2]
[318327445,1710178233489,-773.61,0.00015498,2]
[318327446,1710178233500,-773.61,0.00015498,2]
[318327447,1710178233510,-773.61,0.00015498,2]
[318327448,1710178233522,-773.61,0.00015498,2]
[318327449,1710178233532,-773.61,0.00015498,2]
[318327450,1710178233541,-773.61,0.00015498,2]
[318327451,1710178233551,-773.61,0.00015498,2]
[318327452,1710178233560,-773.61,0.00015498,2]
[318327453,1710178233570,-773.61,0.00015498,2]
[318327454,1710178233578,-773.61,0.00015498,2]
[318327455,1710178233588,-773.61,0.00015498,2]
[318327456,1710178233597,-773.61,0.00015498,2]
[318327457,1710178233605,-773.61,0.00015498,2]
[318327458,1710178233615,-773.61,0.00015498,2]
[318327459,1710178233624,-773.77161438,0.00015498,2]
[318327460,1710178233634,-1062.92,0.00015498,2]
[318327461,1710178233642,-1062.92,0.00015498,2]
[318327462,1710178233652,-1062.92,0.00015498,2]
[318327463,1710178233661,-1062.92,0.00015498,2]
[318327464,1710178233670,-1062.92,0.00015498,2]
[318327465,1710178233679,-1062.92,0.00015498,2]
[318327466,1710178233688,-1062.92,0.00015498,2]
[318327467,1710178233697,-1062.92,0.00015498,2]
[318327468,1710178233706,-1062.92,0.00015498,2]
[318327469,1710178233715,-1062.92,0.00015498,2]
[318327470,1710178233724,-1062.92,0.00015498,2]
[318327471,1710178233732,-1062.92,0.00015498,2]
[318327472,1710178233741,-1062.92,0.00015498,2]
[318327473,1710178233772,-1062.92,0.00015498,2]
[318327474,1710178233797,-1062.92,0.00015498,2]
[318327475,1710178233806,-1062.92,0.00015498,2]
[318327476,1710178233815,-1062.92,0.00015498,2]
[318327477,1710178233825,-1062.92,0.00015498,2]
[318327478,1710178233834,-1062.92,0.00015498,2]
[318327479,1710178233843,-1062.92,0.00015498,2]
[318327480,1710178233852,-1062.92,0.00015498,2]
[318327481,1710178233861,-1062.92,0.00015498,2]
[318327482,1710178233870,-1062.92,0.00015498,2]
[318327483,1710178233880,-1062.94468053,0.00015498,2]
[318327484,1710178233889,-500.0,0.00015498,2]
[318327485,1710178233898,-500.0,0.00015498,2]
[318327486,1710178233907,-500.0,0.00015498,2]
[318327487,1710178233916,-500.0,0.00015498,2]
[318327488,1710178233925,-500.0,0.00015498,2]
[318327489,1710178233934,-500.0,0.00015498,2]
[318327490,1710178233943,-500.0,0.00015498,2]
[318327491,1710178233953,-500.0,0.00015498,2]
[318327492,1710178233962,-500.0,0.00015498,2]
[318327493,1710178233970,-500.0,0.00015498,2]
[318327494,1710178233980,-557.09277791,0.00015498,2]
[318327495,1710178233989,-508.09450477,0.00015498,2]
[318327496,1710178233998,-1254.33,0.00015498,2]
[318327497,1710178234008,-1254.33,0.00015498,2]
[318327498,1710178234017,-1254.33,0.00015498,2]
[318327499,1710178234026,-1254.33,0.00015498,2]
[318327500,1710178234035,-1254.33,0.00015498,2]
[318327501,1710178234044,-1254.33,0.00015498,2]
[318327502,1710178234053,-1254.33,0.00015498,2]
[318327503,1710178234062,-1254.33,0.00015498,2]
[318327504,1710178234071,-1254.33,0.00015498,2]
[318327505,1710178234081,-1254.33,0.00015498,2]
[318327506,1710178234090,-1254.33,0.00015498,2]
[318327507,1710178234099,-1254.33,0.00015498,2]
[318327508,1710178234108,-1254.33,0.00015498,2]
[318327509,1710178234117,-1254.33,0.00015498,2]
[318327510,1710178234126,-1254.33,0.00015498,2]
[318327511,1710178234137,-1060.68,0.00015498,2]
[318327512,1710178234146,-1060.68,0.00015498,2]
[318327513,1710178234156,-1060.68,0.00015498,2]
[318327514,1710178234166,-1060.68,0.00015498,2]
[318327515,1710178234175,-1254.33,0.00015498,2]
[318327516,1710178234184,-1060.68,0.00015498,2]
[318327517,1710178234194,-1060.68,0.00015498,2]
[318327518,1710178234203,-1254.33,0.00015498,2]
[318327519,1710178234212,-1060.68,0.00015498,2]
[318327520,1710178234221,-1254.33,0.00015498,2]
[318327521,1710178234230,-1060.68,0.00015498,2]
[318327522,1710178234239,-1254.33,0.00015498,2]
[318327523,1710178234248,-1254.33,0.00015498,2]
[318327524,1710178234257,-1060.68,0.00015498,2]
[318327525,1710178234267,-1254.33,0.00015498,2]
[318327526,1710178234275,-1060.68,0.00015498,2]
[318327527,1710178234284,-1254.33,0.00015498,2]
[318327528,1710178234294,-1060.68,0.00015498,2]
[318327529,1710178234303,-1060.68,0.00015498,2]
[318327530,1710178234312,-1254.33,0.00015498,2]
[318327531,1710178234321,-1060.68,0.00015498,2]
[318327532,1710178234333,-1254.51829896,0.00015498,2]
[318327533,1710178234342,-1060.68,0.00015498,2]
[318327534,1710178234351,-1060.68,0.00015498,2]
[318327535,1710178234360,-1060.68,0.00015498,2]
[318327536,1710178234369,-1060.68,0.00015498,2]
[318327537,1710178234378,-1060.68,0.00015498,2]
[318327538,1710178234387,-1060.68,0.00015498,2]
[318327539,1710178234396,-1060.68,0.00015498,2]
[318327540,1710178234405,-1060.68,0.00015498,2]
[318327541,1710178234414,-1060.68,0.00015498,2]
[318327542,1710178234423,-1060.68,0.00015498,2]
[318327543,1710178234432,-1060.81593512,0.00015498,2]
[318327544,1710178234441,-2812.49,0.00015498,2]
[318327545,1710178234451,-2812.49,0.00015498,2]
[318327546,1710178234461,-2812.49,0.00015498,2]
[318327547,1710178234470,-2812.49,0.00015498,2]
[318327548,1710178234483,-2812.49,0.00015498,2]
[318327549,1710178234492,-2812.49,0.00015498,2]
[318327550,1710178234503,-2812.49,0.00015498,2]
[318327551,1710178234512,-2812.49,0.00015498,2]
[318327552,1710178234521,-2812.49,0.00015498,2]
[318327553,1710178234530,-2812.49,0.00015498,2]
[318327554,1710178234539,-2812.49,0.00015498,2]
[318327555,1710178234548,-2812.49,0.00015498,2]
[318327556,1710178234558,-2812.49,0.00015498,2]
[318327557,1710178234567,-2812.49,0.00015498,2]
[318327558,1710178234576,-2029.57,0.00015498,2]
[318327559,1710178234586,-2812.49,0.00015498,2]
[318327560,1710178234595,-2029.57,0.00015498,2]
[318327561,1710178234603,-2029.57,0.00015498,2]
[318327562,1710178234612,-2812.49,0.00015498,2]
[318327563,1710178234622,-2029.57,0.00015498,2]
[318327564,1710178234632,-2812.49,0.00015498,2]
[318327565,1710178234641,-2029.57,0.00015498,2]
[318327566,1710178234650,-2029.57,0.00015498,2]
[318327567,1710178234659,-2812.49,0.00015498,2]
[318327568,1710178234668,-2029.57,0.00015498,2]
[318327569,1710178234677,-2812.49,0.00015498,2]
[318327570,1710178234687,-2029.57,0.00015498,2]
[318327571,1710178234697,-2812.49,0.00015498,2]
[318327572,1710178234707,-2029.57,0.00015498,2]
[318327573,1710178234716,-2812.49,0.00015498,2]
[318327574,1710178234726,-2029.57,0.00015498,2]
[318327575,1710178234735,-2812.49,0.00015498,2]
[318327576,1710178234745,-2812.49,0.00015498,2]
[318327577,1710178234754,-2029.57,0.00015498,2]
[318327578,1710178234763,-2029.57,0.00015498,2]
[318327579,1710178234773,-2812.61442024,0.00015498,2]
[318327580,1710178234782,-2029.57,0.00015498,2]
[318327581,1710178234791,-2029.57,0.00015498,2]
[318327582,1710178234801,-2029.57,0.00015498,2]
[318327583,1710178234810,-2029.57,0.00015498,2]
[318327584,1710178234819,-2029.57,0.00015498,2]
[318327585,1710178234829,-2029.57,0.00015498,2]
[318327586,1710178234838,-2029.57,0.00015498,2]
[318327587,1710178234847,-2029.57,0.00015498,2]
[318327588,1710178234856,-2029.57,0.00015498,2]
[318327589,1710178234866,-2029.57,0.00015498,2]
[318327590,1710178234875,-2029.57,0.00015498,2]
[318327591,1710178234886,-2029.80663585,0.00015498,2]
[318327592,1710178234896,-151.0,0.00015498,2]
[318327593,1710178234905,-151.0,0.00015498,2]
[318327594,1710178234914,-522.8693144,0.00015498,2]
[318327595,1710178234923,-500.0,0.00015498,2]
[318327596,1710178234934,-500.0,0.00015498,2]
[318327597,1710178234943,-500.0,0.00015498,2]
[318327598,1710178234952,-500.0,0.00015498,2]
[318327599,1710178234961,-550.77566838,0.00015498,2]
[318327600,1710178234971,-12798.19,0.00015498,2]
[318327601,1710178234980,-12798.19,0.00015498,2]
[318327602,1710178234989,-12798.19,0.00015498,2]
[318327603,1710178234998,-12798.19,0.00015498,2]
[318327604,1710178235007,-12798.19,0.00015498,2]
[318327605,1710178235017,-12798.19,0.00015498,2]
[318327606,1710178235027,-12798.19,0.00015498,2]
[318327607,1710178235037,-12798.19,0.00015498,2]
[318327608,1710178235046,-12798.19,0.00015498,2]
[318327609,1710178235056,-12798.19,0.00015498,2]
[318327610,1710178235065,-12798.19,0.00015498,2]
[318327611,1710178235075,-12798.19,0.00015498,2]
[318327612,1710178235085,-12798.19,0.00015498,2]
[318327613,1710178235095,-12798.19,0.00015498,2]
[318327614,1710178235104,-12798.19,0.00015498,2]
[318327615,1710178235114,-12798.19,0.00015498,2]
[318327616,1710178235124,-12798.19,0.00015498,2]
[318327617,1710178235139,-12798.19,0.00015498,2]
[318327618,1710178235148,-12798.19,0.00015498,2]
[318327619,1710178235158,-12798.19,0.00015498,2]
[318327620,1710178235244,-12798.19,0.00015498,2]
[318327621,1710178235254,-12798.19,0.00015498,2]
[318327622,1710178235264,-12798.19,0.00015498,2]
[318327623,1710178235274,-12798.2241127,0.00015498,2]
[318327624,1710178235284,-500.0,0.00015498,2]
[318327625,1710178235294,-500.0,0.00015498,2]
[318327626,1710178235303,-500.0,0.00015498,2]
[318327627,1710178235312,-500.0,0.00015498,2]
[318327628,1710178235322,-500.0,0.00015498,2]
[318327629,1710178235331,-500.0,0.00015498,2]
[318327630,1710178235343,-500.0,0.00015498,2]
[318327631,1710178235354,-500.0,0.00015498,2]
[318327632,1710178235364,-500.0,0.00015498,2]
[318327633,1710178235373,-280.39465805,0.00015498,2]
[318327634,1710178235384,-501.43373043,0.00015498,2]
[318327635,1710178235394,-507.37542494,0.00015498,2]
[318327636,1710178235404,-2853.9,0.00015498,2]
[318327637,1710178235413,-443.49803033,0.00015498,2]
[318327638,1710178235423,-2853.9,0.00015498,2]
[318327639,1710178235433,-2853.9,0.00015498,2]
[318327640,1710178235443,-2853.9,0.00015498,2]
[318327641,1710178235454,-500.0,0.00015498,2]
[318327642,1710178235466,-2853.9,0.00015498,2]
[318327643,1710178235475,-500.0,0.00015498,2]
[318327644,1710178235484,-2853.9,0.00015498,2]
[318327645,1710178235495,-500.0,0.00015498,2]
[318327646,1710178235504,-268.30970909,0.00015498,2]
[318327647,1710178235514,-2853.9,0.00015498,2]
[318327648,1710178235524,-500.0,0.00015498,2]
[318327649,1710178235534,-2853.9,0.00015498,2]
[318327650,1710178235544,-500.0,0.00015498,2]
[318327651,1710178235555,-2853.9,0.00015498,2]
[318327652,1710178235565,-500.0,0.00015498,2]
[318327653,1710178235575,-2853.9,0.00015498,2]
[318327654,1710178235585,-500.0,0.00015498,2]
[318327655,1710178235597,-2853.9,0.00015498,2]
[318327656,1710178235607,-2853.9,0.00015498,2]
[318327657,1710178235618,-2853.9,0.00015498,2]
[318327658,1710178235628,-2853.9,0.00015498,2]
[318327659,1710178235638,-500.0,0.00015498,2]
[318327660,1710178235647,-2853.9,0.00015498,2]
[318327661,1710178235657,-500.0,0.00015498,2]
[318327662,1710178235667,-2853.9,0.00015498,2]
[318327663,1710178235677,-2853.9,0.00015498,2]
[318327664,1710178235687,-2853.9,0.00015498,2]
[318327665,1710178235697,-500.0,0.00015498,2]
[318327666,1710178235707,-2853.9,0.00015498,2]
[318327667,1710178235717,-3105.77,0.00015498,2]
[318327668,1710178235726,-500.0,0.00015498,2]
[318327669,1710178235735,-2853.9,0.00015498,2]
[318327670,1710178235745,-500.0,0.00015498,2]
[318327671,1710178235754,-3105.77,0.00015498,2]
[318327672,1710178235763,-2853.9,0.00015498,2]
[318327673,1710178235773,-500.0,0.00015498,2]
[318327674,1710178235783,-3105.77,0.00015498,2]
[318327675,1710178235792,-2853.9,0.00015498,2]
[318327676,1710178235802,-3105.77,0.00015498,2]
[318327677,1710178235811,-2853.9,0.00015498,2]
[318327678,1710178235821,-3105.77,0.00015498,2]
[318327679,1710178235831,-2854.06156002,0.00015498,2]
[318327680,1710178235840,-3105.77,0.00015498,2]
[318327681,1710178235850,-3105.77,0.00015498,2]
[318327682,1710178235859,-3105.77,0.00015498,2]
[318327683,1710178235868,-3105.77,0.00015498,2]
[318327684,1710178235878,-3105.77,0.00015498,2]
[318327685,1710178235889,-3105.77,0.00015498,2]
[318327686,1710178235899,-500.0,0.00015498,2]
[318327687,1710178235909,-3105.77,0.00015498,2]
[318327688,1710178235919,-500.0,0.00015498,2]
[318327689,1710178235931,-3105.77,0.00015498,2]
[318327690,1710178235940,-500.0,0.00015498,2]
[318327691,1710178235951,-3105.77,0.00015498,2]
[318327692,1710178235961,-500.0,0.00015498,2]
[318327693,1710178235971,-3105.77,0.00015498,2]
[318327694,1710178235981,-500.0,0.00015498,2]
[318327695,1710178235991,-3105.77,0.00015498,2]
[318327696,1710178236002,-500.0,0.00015498,2]